fUST/lending_fUST_20250219
["ID","MTS","AMOUNT","RATE_DAILY","PERIOD"]
[353548678,1739908246277,-500.0,0.0001452,2]
[353548680,1739908246288,-500.0,0.0001452,2]
[353548682,1739908246298,-527.28,0.0001452,2]
[353548684,1739908246308,-707.42,0.0001452,2]
[353548686,1739908246317,-500.0,0.0001452,2]
[353548688,1739908246327,-500.0,0.0001452,2]
[353548691,1739908246338,-5215.06,0.0001452,2]
[353548693,1739908246350,-500.0,0.0001452,2]
[353548695,1739908246359,-500.0,0.0001452,2]
[353548697,1739908246369,-683.93,0.0001452,2]
[353548699,1739908246380,-1912.79,0.0001452,2]
[353548701,1739908246390,-738.43,0.0001452,2]
[353548702,1739908246400,-500.0,0.0001452,2]
[353548703,1739908246409,-1000.25,0.0001452,2]
[353548704,1739908246419,-500.0,0.00014593,7]
[353548705,1739908246429,-500.0,0.00014593,7]
[353548706,1739908246439,-500.0,0.00014593,7]
[353548707,1739908246449,-500.0,0.00014593,7]
[353548708,1739908246458,-500.0,0.00014593,7]
[353548710,1739908246467,-500.0,0.00014593,7]
[353548712,1739908246477,-500.0,0.00014593,7]
[353548713,1739908246486,-500.0,0.00014593,7]
[353548715,1739908246496,-500.0,0.00014593,7]
[353548717,1739908246506,-500.0,0.00014593,7]
[353548719,1739908246515,-500.0,0.00014593,7]
[353548721,1739908246525,-500.0,0.00014593,7]
[353548722,1739908246535,-500.0,0.00014593,7]
[353548723,1739908246545,-500.0,0.00014593,7]
[353548724,1739908246555,-500.0,0.00014593,7]
[353548725,1739908246565,-500.0,0.00014593,7]
[353548726,1739908246575,-500.0,0.00014593,7]
[353548727,1739908246585,-500.0,0.00014593,7]
[353548728,1739908246596,-500.0,0.00014593,7]
[353548730,1739908246606,-500.0,0.00014593,7]
[353548731,1739908246616,-500.0,0.00014593,7]
[353548733,1739908246627,-500.0,0.00014593,7]
[353548734,1739908246636,-500.0,0.00014593,7]
[353548735,1739908246646,-500.0,0.00014593,7]
[353548736,1739908246658,-500.0,0.00014593,7]
[353548737,1739908246668,-500.0,0.00014593,7]
[353548738,1739908246678,-500.0,0.00014593,7]
[353548739,1739908246687,-500.0,0.00014593,7]
[353548740,1739908246697,-500.0,0.00014593,7]
[353548741,1739908246707,-500.0,0.00014593,7]
[353548742,1739908246718,-500.0,0.00014593,7]
[353548744,1739908246728,-500.0,0.00014593,7]
[353548746,1739908246737,-252.96,0.00014593,7]
[353548747,1739908246747,-500.0,0.00014593,7]
[353548749,1739908246756,-500.0,0.00014593,7]
[353548751,1739908246766,-500.0,0.00014602,2]
[353548753,1739908246775,-500.0,0.00014602,2]
[353548755,1739908246785,-346.07697539,0.00014602,2]
[353548757,1739908246795,-1293.48,0.00014602,2]
[353548759,1739908246805,-676.71,0.00014602,2]
[353548761,1739908246815,-500.0,0.00014602,2]
[353548762,1739908246825,-500.0,0.00014602,2]
[353548763,1739908246835,-500.0,0.00014602,2]
[353548764,1739908246846,-606.47,0.00014602,2]
[353548765,1739908246856,-832.84,0.00014602,2]
[353548766,1739908246866,-1475.57,0.00014602,2]
[353548767,1739908246876,-833.62,0.00014602,2]
[353548768,1739908246886,-500.00000001,0.00014602,2]
[353548769,1739908246895,-500.0,0.00014602,2]
[353548770,1739908246905,-500.0,0.00014602,2]
[353548771,1739908246916,-500.0,0.00014602,2]
[353548772,1739908246926,-527.28,0.00014602,2]
[353548773,1739908246935,-707.42,0.00014602,2]
[353548774,1739908246945,-500.0,0.00014602,2]
[353548775,1739908246956,-500.0,0.00014602,2]
[353548776,1739908246966,-5215.06,0.00014602,2]
[353548777,1739908246975,-500.0,0.00014602,2]
[353548778,1739908246985,-500.0,0.00014602,2]
[353548779,1739908246996,-683.93,0.00014602,2]
[353548780,1739908247009,-1912.79,0.00014602,2]
[353548781,1739908247019,-738.43,0.00014602,2]
[353548782,1739908247029,-500.0,0.00014602,2]
[353548783,1739908247039,-1000.25,0.00014602,2]
[353548784,1739908247050,-500.0,0.00014684,2]
[353548785,1739908247060,-500.0,0.00014684,2]
[353548786,1739908247070,-1293.48,0.00014684,2]
[353548787,1739908247081,-676.71,0.00014684,2]
[353548788,1739908247091,-500.0,0.00014684,2]
[353548789,1739908247102,-500.0,0.00014684,2]
[353548790,1739908247112,-500.0,0.00014684,2]
[353548791,1739908247122,-606.47,0.00014684,2]
[353548792,1739908247132,-832.84,0.00014684,2]
[353548793,1739908247142,-1475.57,0.00014684,2]
[353548794,1739908247152,-833.62,0.00014684,2]
[353548795,1739908247162,-500.0,0.00014684,2]
[353548796,1739908247172,-500.0,0.00014684,2]
[353548797,1739908247183,-500.0,0.00014684,2]
[353548798,1739908247193,-527.28,0.00014684,2]
[353548799,1739908247203,-707.42,0.00014684,2]
[353548800,1739908247213,-500.0,0.00014684,2]
[353548801,1739908247224,-500.0,0.00014684,2]
[353548802,1739908247234,-5215.06,0.00014684,2]
[353548803,1739908247244,-290.37,0.00014684,2]
[353548804,1739908247255,-500.0,0.00014684,2]
[353548805,1739908247265,-683.93,0.00014684,2]
[353548806,1739908247276,-738.43,0.00014684,2]
[353548807,1739908247286,-1912.79,0.00014684,2]
[353548808,1739908247296,-500.0,0.00014684,2]
[353548809,1739908247306,-1000.25,0.00014684,2]
[353548810,1739908247317,-631.18133988,0.0001472,2]
[353548811,1739908247328,-320.7,0.00014767,2]
[353548812,1739908247338,-500.0,0.00014767,2]
[353548813,1739908247354,-1293.48,0.00014767,2]
[353548814,1739908247365,-676.71,0.00014767,2]
[353548815,1739908247375,-500.0,0.00014767,2]
[353548816,1739908247385,-500.0,0.00014767,2]
[353548817,1739908247395,-500.0,0.00014767,2]
[353548818,1739908247405,-606.47,0.00014767,2]
[353548819,1739908247415,-832.84,0.00014767,2]
[353548820,1739908247425,-1475.57,0.00014767,2]
[353548821,1739908247435,-833.62,0.00014767,2]
[353548822,1739908247445,-500.0,0.00014767,2]
[353548823,1739908247454,-500.0,0.00014767,2]
[353548824,1739908247464,-500.0,0.00014767,2]
[353548825,1739908247474,-527.28,0.00014767,2]
[353548826,1739908247483,-707.42,0.00014767,2]
[353548827,1739908247493,-500.0,0.00014767,2]
[353548828,1739908247504,-500.0,0.00014767,2]
[353548829,1739908247513,-5215.06,0.00014767,2]
[353548830,1739908247525,-500.0,0.00014767,2]
[353548831,1739908247534,-683.93,0.00014767,2]
[353548832,1739908247543,-738.43,0.00014767,2]
[353548833,1739908247553,-1912.79,0.00014767,2]
[353548834,1739908247564,-500.0,0.00014767,2]
[353548835,1739908247573,-1000.25,0.00014767,2]
[353548836,1739908247583,-500.0,0.00014849,2]
[353548837,1739908247593,-1293.48,0.00014849,2]
[353548838,1739908247603,-676.71,0.00014849,2]
[353548839,1739908247612,-500.0,0.00014849,2]
[353548840,1739908247622,-500.0,0.00014849,2]
[353548841,1739908247631,-500.0,0.00014849,2]
[353548842,1739908247641,-606.47,0.00014849,2]
[353548843,1739908247651,-832.84,0.00014849,2]
[353548844,1739908247660,-1475.57,0.00014849,2]
[353548845,1739908247670,-833.62,0.00014849,2]
[353548846,1739908247680,-500.0,0.00014849,2]
[353548847,1739908247689,-500.0,0.00014849,2]
[353548848,1739908247699,-500.0,0.00014849,2]
[353548849,1739908247709,-527.28,0.00014849,2]
[353548850,1739908247719,-707.42,0.00014849,2]
[353548851,1739908247729,-500.0,0.00014849,2]
[353548852,1739908247739,-418.21,0.00014849,2]
[353548853,1739908247749,-5215.06,0.00014849,2]
[353548854,1739908247759,-500.0,0.00014849,2]
[353548855,1739908247769,-683.93,0.00014849,2]
[353548856,1739908247779,-738.43,0.00014849,2]
[353548857,1739908247789,-1912.79,0.00014849,2]
[353548858,1739908247799,-500.0,0.00014849,2]
[353548859,1739908247809,-1000.25,0.00014849,2]
[353548860,1739908247820,-500.0,0.00014873,2]
[353548861,1739908247830,-500.0,0.00014873,2]
[353548862,1739908247840,-500.0,0.00014873,2]
[353548863,1739908247851,-393924.466868,0.000149,2]
[353548864,1739908247862,-612.6342702,0.00014931,2]
[353548865,1739908247872,-1293.48,0.00014931,2]
[353548866,1739908247882,-676.71,0.00014931,2]
[353548867,1739908247892,-506.81531074,0.00014931,2]
[353548868,1739908247902,-500.0,0.00014931,2]
[353548869,1739908247913,-500.0,0.00014931,2]
[353548870,1739908247923,-606.47,0.00014931,2]
[353548871,1739908247934,-832.84,0.00014931,2]
[353548872,1739908247944,-1475.57,0.00014931,2]
[353548873,1739908247953,-833.62,0.00014931,2]
[353548874,1739908247963,-500.0,0.00014931,2]
[353548875,1739908247972,-500.0,0.00014931,2]
[353548876,1739908247982,-500.0,0.00014931,2]
[353548877,1739908247991,-527.28,0.00014931,2]
[353548878,1739908248004,-707.42,0.00014931,2]
[353548879,1739908248014,-500.0,0.00014931,2]
[353548880,1739908248024,-5215.06,0.00014931,2]
[353548881,1739908248034,-500.0,0.00014931,2]
[353548882,1739908248045,-683.93,0.00014931,2]
[353548883,1739908248055,-738.43,0.00014931,2]
[353548884,1739908248066,-1912.79,0.00014931,2]
[353548885,1739908248076,-279.5,0.00014931,2]
[353548886,1739908248087,-1000.25,0.00014931,2]
[353548887,1739908248099,-1293.48,0.00015013,2]
[353548888,1739908248109,-676.71,0.00015013,2]
[353548889,1739908248119,-400.58,0.00015013,2]
[353548890,1739908248129,-500.0,0.00015013,2]
[353548891,1739908248139,-606.47,0.00015013,2]
[353548892,1739908248149,-832.84,0.00015013,2]
[353548893,1739908248159,-1475.57,0.00015013,2]
[353548894,1739908248170,-833.62,0.00015013,2]
[353548895,1739908248180,-500.0,0.00015013,2]
[353548896,1739908248190,-500.0,0.00015013,2]
[353548897,1739908248201,-500.0,0.00015013,2]
[353548898,1739908248211,-500.0,0.00015013,2]
[353548899,1739908248223,-150.29,0.00015013,2]
[353548900,1739908248234,-150.29,0.00015013,2]
[353548901,1739908248245,-300.16136656,0.00015013,2]
[353548902,1739908248256,-150.29,0.00015013,2]
[353548903,1739908248267,-500.0,0.00015013,2]
[353548904,1739908248279,-500.0,0.00015013,2]
[353548905,1739908248290,-500.0,0.00015013,2]
[353548906,1739908248300,-150.29,0.00015013,2]
[353548907,1739908248311,-217.72891801,0.00015013,2]
[353548908,1739908248321,-527.28,0.00015013,2]
[353548909,1739908248330,-707.42,0.00015013,2]
[353548910,1739908248340,-500.0,0.00015013,2]
[353548911,1739908248351,-500.0,0.00015013,2]
[353548912,1739908248361,-150.29,0.00015013,2]
[353548913,1739908248371,-500.0,0.00015013,2]
[353548914,1739908248381,-500.0,0.00015013,2]
[353548915,1739908248391,-500.0,0.00015013,2]
[353548916,1739908248402,-5215.06,0.00015013,2]
[353548917,1739908248412,-500.0,0.00015013,2]
[353548918,1739908248423,-683.93,0.00015013,2]
[353548919,1739908248434,-300.54,0.00015013,2]
[353548920,1739908248445,-738.43,0.00015013,2]
[353548921,1739908248456,-1912.79,0.00015013,2]
[353548922,1739908248468,-1000.25,0.00015013,2]
[353548923,1739908248479,-1302.27296877,0.00015078,2]
[353548924,1739908248602,-1293.48,0.00015095,2]
[353548925,1739908248613,-676.71,0.00015095,2]
[353548926,1739908248623,-500.0,0.00015095,2]
[353548927,1739908248634,-606.47,0.00015095,2]
[353548928,1739908248645,-832.84,0.00015095,2]
[353548929,1739908248657,-1475.57,0.00015095,2]
[353548930,1739908248667,-833.62,0.00015095,2]
[353548931,1739908248677,-500.0,0.00015095,2]
[353548932,1739908248687,-500.0,0.00015095,2]
[353548933,1739908248697,-500.0,0.00015095,2]
[353548934,1739908248707,-527.28,0.00015095,2]
[353548935,1739908248717,-707.42,0.00015095,2]
[353548936,1739908248727,-500.0,0.00015095,2]
[353548937,1739908248737,-5215.06,0.00015095,2]
[353548938,1739908248747,-500.0,0.00015095,2]
[353548939,1739908248758,-683.93,0.00015095,2]
[353548940,1739908248768,-738.43,0.00015095,2]
[353548941,1739908248778,-1912.79,0.00015095,2]
[353548942,1739908248788,-151.0,0.00015132,2]
[353548943,1739908248798,-1293.48,0.00015178,2]
[353548944,1739908248808,-676.71,0.00015178,2]
[353548945,1739908248818,-500.0,0.00015178,2]
[353548946,1739908248828,-606.47,0.00015178,2]
[353548947,1739908248838,-832.84,0.00015178,2]
[353548948,1739908248850,-1475.57,0.00015178,2]
[353548949,1739908248863,-833.62,0.00015178,2]
[353548950,1739908248873,-500.0,0.00015178,2]
[353548951,1739908248883,-500.0,0.00015178,2]
[353548952,1739908248892,-500.0,0.00015178,2]
[353548953,1739908248902,-527.28,0.00015178,2]
[353548954,1739908248912,-707.42,0.00015178,2]
[353548955,1739908248923,-500.0,0.00015178,2]
[353548956,1739908248933,-5215.06,0.00015178,2]
[353548957,1739908248943,-308.87,0.00015178,2]
[353548958,1739908248953,-683.93,0.00015178,2]
[353548959,1739908248963,-738.43,0.00015178,2]
[353548960,1739908248973,-1912.79,0.00015178,2]
[353548961,1739908248983,-622.0,0.000152,2]
[353548962,1739908248993,-1293.48,0.0001526,2]
[353548963,1739908249007,-676.71,0.0001526,2]
[353548964,1739908249018,-500.0,0.0001526,2]
[353548965,1739908249028,-606.47,0.0001526,2]
[353548966,1739908249038,-832.84,0.0001526,2]
[353548967,1739908249048,-1475.57,0.0001526,2]
[353548968,1739908249058,-833.62,0.0001526,2]
[353548969,1739908249069,-500.0,0.0001526,2]
[353548970,1739908249081,-500.0,0.0001526,2]
[353548971,1739908249092,-220.12,0.0001526,2]
[353548972,1739908249103,-527.28,0.0001526,2]
[353548973,1739908249115,-707.42,0.0001526,2]
[353548974,1739908249126,-331.40242561,0.0001526,2]
[353548975,1739908249136,-5215.06,0.0001526,2]
[353548976,1739908249147,-683.93,0.0001526,2]
[353548977,1739908249156,-738.43,0.0001526,2]
[353548978,1739908249166,-1912.79,0.0001526,2]
[353548979,1739908249177,-500.0,0.00015273,2]
[353548980,1739908249187,-441.5284998,0.00015277,2]
[353548981,1739908249198,-500.0,0.00015287,2]
[353548982,1739908249210,-500.0,0.00015287,2]
[353548983,1739908249220,-150.29,0.00015287,2]
[353548984,1739908249230,-150.29,0.00015287,2]
[353548985,1739908249240,-150.29,0.00015287,2]
[353548986,1739908249250,-650.47016863,0.00015287,2]
[353548987,1739908249260,-500.0,0.00015287,2]
[353548988,1739908249271,-500.0,0.00015287,2]
[353548989,1739908249281,-500.0,0.00015287,2]
[353548990,1739908249291,-887.36465599,0.00015287,2]
[353548991,1739908249301,-989.42284431,0.00015287,2]
[353548992,1739908249311,-245858.0391519,0.000153,5]
[353548993,1739908249321,-8866.9,0.000153,5]
[353548994,1739908249331,-153729.02,0.000153,5]
[353548995,1739908249342,-1293.48,0.00015342,2]
[353548996,1739908249353,-676.71,0.00015342,2]
[353548997,1739908249364,-500.0,0.00015342,2]
[353548998,1739908249375,-606.47,0.00015342,2]
[353548999,1739908249385,-832.84,0.00015342,2]
[353549000,1739908249395,-1475.57,0.00015342,2]
[353549001,1739908249406,-833.62,0.00015342,2]
[353549002,1739908249418,-500.0,0.00015342,2]
[353549003,1739908249427,-500.0,0.00015342,2]
[353549004,1739908249438,-527.28,0.00015342,2]
[353549005,1739908249449,-707.42,0.00015342,2]
[353549006,1739908249460,-5215.06,0.00015342,2]
[353549007,1739908249471,-683.93,0.00015342,2]
[353549008,1739908249480,-738.43,0.00015342,2]
[353549009,1739908249490,-1912.79,0.00015342,2]
[353549010,1739908249501,-168.26106217,0.00015342,2]
[353549011,1739908249512,-3000.0,0.00015389,2]
[353549012,1739908249523,-336.0,0.0001539,2]
[353549013,1739908249533,-1302.27296868,0.00015392,2]
[353549014,1739908249543,-250.0,0.00015396,2]
[353549015,1739908249554,-372.03,0.00015396,2]
[353549016,1739908249565,-300.47,0.00015396,2]
[353549017,1739908249577,-1000.0,0.00015421,2]
[353549018,1739908249587,-1293.48,0.00015424,2]
[353549019,1739908249597,-676.71,0.00015424,2]
[353549020,1739908249607,-173.22,0.00015424,2]
[353549021,1739908249618,-606.47,0.00015424,2]
[353549022,1739908249628,-832.84,0.00015424,2]
[353549023,1739908249639,-1475.57,0.00015424,2]
[353549024,1739908249650,-833.62,0.00015424,2]
[353549025,1739908249660,-155.05,0.00015424,2]
[353549026,1739908249670,-496.8,0.00015424,2]
[353549027,1739908249680,-527.28,0.00015424,2]
[353549028,1739908249690,-707.42,0.00015424,2]
[353549029,1739908249701,-5215.06,0.00015424,2]
[353549030,1739908249711,-683.93,0.00015424,2]
[353549031,1739908249721,-738.43,0.00015424,2]
[353549032,1739908249731,-1912.79,0.00015424,2]
[353549033,1739908249741,-1293.48,0.00015506,2]
[353549034,1739908249752,-676.71,0.00015506,2]
[353549035,1739908249762,-606.47,0.00015506,2]
[353549036,1739908249772,-832.84,0.00015506,2]
[353549037,1739908249782,-1475.57,0.00015506,2]
[353549038,1739908249792,-833.62,0.00015506,2]
[353549039,1739908249802,-527.28,0.00015506,2]
[353549040,1739908249812,-707.42,0.00015506,2]
[353549041,1739908249823,-5215.06,0.00015506,2]
[353549042,1739908249834,-683.93,0.00015506,2]
[353549043,1739908249843,-738.43,0.00015506,2]
[353549044,1739908249853,-1912.79,0.00015506,2]
[353549045,1739908249863,-500.54480913,0.00015561,2]
[353549046,1739908249874,-500.0,0.00015561,2]
[353549047,1739908249885,-299.40151707,0.00015561,2]
[353549048,1739908249895,-299.46735996,0.00015561,2]
[353549049,1739908249905,-215.79113556,0.00015561,2]
[353549050,1739908249916,-649.76821843,0.00015561,2]
[353549051,1739908249926,-500.0,0.00015561,2]
[353549052,1739908249935,-924.87072144,0.00015561,2]
[353549053,1739908249945,-168.26106217,0.00015562,2]
[353549054,1739908249954,-151.0,0.00015588,2]
[353549055,1739908249963,-1293.71999999,0.00015589,2]
[353549056,1739908249972,-676.75,0.00015589,2]
[353549057,1739908249983,-606.5,0.00015589,2]
[353549058,1739908249993,-832.84,0.00015589,2]
[353549059,1739908250008,-1475.76856756,0.00015589,2]
[353549060,1739908250018,-833.71,0.00015589,2]
[353549061,1739908250028,-527.36,0.00015589,2]
[353549062,1739908250038,-707.49894965,0.00015589,2]
[353549063,1739908250048,-5215.11,0.00015589,2]
[353549064,1739908250058,-684.11,0.00015589,2]
[353549065,1739908250067,-738.51,0.00015589,2]
[353549066,1739908250076,-1912.84,0.00015589,2]
[353549067,1739908250086,-501.0,0.000156,2]
[353549068,1739908250096,-501.0,0.000156,2]
[353549069,1739908250106,-2025.1067,0.000156,2]
[353549070,1739908250116,-2025.1067,0.000156,2]
[353549071,1739908250126,-1302.27296868,0.00015705,2]
[353549072,1739908250136,-168.26106217,0.00015753,2]
[353549073,1739908250145,-378.880176,0.00015775,2]
[353549074,1739908250156,-900.0,0.00015808,2]
[353549075,1739908250165,-500.16756516,0.00015821,2]
[353549076,1739908250177,-749.7315903,0.00015835,2]
[353549077,1739908250186,-500.0,0.00015835,2]
[353549078,1739908250196,-500.0,0.00015898,2]
[353549079,1739908250206,-465.00025848,0.00015947,2]
[353549080,1739908250217,-500.0,0.00015998,2]
[353549081,1739908250226,-150.0,0.00016,2]
[353549082,1739908250236,-1302.27296868,0.00016019,2]
[353549083,1739908250246,-500.0,0.00016098,2]
[353549084,1739908250256,-500.0,0.00016109,2]
[353549085,1739908250268,-499.0,0.00016164,2]
[353549086,1739908250278,-500.0,0.00016173,2]
[353549087,1739908250289,-500.0,0.00016198,2]
[353549088,1739908250299,-78159.14379076,0.000162,5]
[353549089,1739908250309,-3864.854861,0.000162,5]
[353549090,1739908250320,-151.0,0.000162,2]
[353549091,1739908250330,-153699.86627603,0.000162,2]
[353549092,1739908250339,-153699.866276,0.000162,2]
[353549093,1739908250350,-28892.9755104,0.000162,2]
[353549094,1739908250495,-3762.08271307,0.00013698,2]
[353549095,1739908250506,-5668.48642094,0.00013698,2]
[353549096,1739908250519,-10725.42086599,0.00013698,2]
[353549097,1739908250528,-20155.99,0.0001378,2]
[353549098,1739908250538,-20155.99,0.00013863,2]
[353549099,1739908250548,-20155.99,0.00013945,2]
[353549100,1739908250558,-8844.97558897,0.00014027,2]
[353549101,1739908250825,-1091.82,0.00013698,2]
[353549102,1739908250834,-500.0,0.00013698,2]
[353549103,1739908250844,-1091.82,0.0001378,2]
[353549104,1739908250853,-1091.82,0.00013863,2]
[353549105,1739908250863,-11311.01441103,0.00014027,2]
[353549106,1739908250873,-20155.99,0.00014109,2]
[353549107,1739908250883,-3297.12581401,0.00014191,2]
[353549108,1739908250895,-502.75,0.00014191,2]
[353549109,1739908250907,-2111.90000002,0.00014191,2]
[353549300,1739908655729,400.0,9.041e-05,2]
[353549318,1739909002733,3000.0,0.00017344,120]
[353549323,1739909228130,-669.93779594,0.00011754,2]
[353549324,1739909252108,-4330.06220406,0.00011754,2]
[353549325,1739909252130,-5000.0,0.00011873,2]
[353549326,1739909252152,-300.0,0.00011982,2]
[353549327,1739909252173,-611.2841548,0.00011984,2]
[353549328,1739909252197,-250.0,0.00011984,2]
[353549329,1739909252218,-620.491262,0.00011993,2]
[353549330,1739909252240,-186.8220889,0.00012182,2]
[353549331,1739909252262,-1830.6601878,0.00012217,2]
[353549332,1739909252284,-292.3208597,0.00012318,2]
[353549333,1739909252307,-2904.71947761,0.00012845,2]
[353549334,1739909252328,-638.99617756,0.00012845,2]
[353549335,1739909252352,-197.54596676,0.00012845,2]
[353549336,1739909252373,-4984.54598756,0.00012845,2]
[353549337,1739909358193,-864.06725864,0.0001152,2]
[353549367,1739909432162,-4135.93274136,0.0001152,2]
[353549368,1739909432172,-5000.0,0.00011636,2]
[353549369,1739909432181,-197.54596676,0.00011654,2]
[353549370,1739909432191,-2758.0741991,0.00012209,2]
[353549371,1739909432200,-300.0,0.00012456,2]
[353549372,1739909432210,-1985.5869532,0.00012457,2]
[353549373,1739909432219,-327.24574945,0.00012845,2]
[353549374,1739909432228,-206.6408805,0.00012945,2]
[353549375,1739909432237,-1000.0,0.00013068,2]
[353549376,1739909432247,-166.01073937,0.00013598,2]
[353549377,1739909432256,-420.0,0.00013668,2]
[353549378,1739909432265,-500.0,0.00013673,2]
[353549380,1739909432275,-498.84886292,0.00013673,2]
[353549382,1739909432285,-306.03888274,0.00013673,2]
[353549384,1739909432294,-500.0,0.00013673,2]
[353549385,1739909432304,-500.0,0.00013673,2]
[353549386,1739909432315,-500.0,0.00013673,2]
[353549387,1739909432327,-151.0,0.0001369,2]
[353549388,1739909432336,-500.0,0.00013697,2]
[353549389,1739909432346,-504.72231569,0.00013697,2]
[353549390,1739909432355,-253.76500601,0.00013697,2]
[353549391,1739909432365,-500.0,0.00013698,2]
[353549392,1739909432374,-500.0,0.00013698,2]
[353549393,1739909432384,-500.0,0.00013698,2]
[353549394,1739909432393,-500.0,0.00013698,2]
[353549395,1739909432403,-500.0,0.00013698,2]
[353549396,1739909432415,-500.0,0.00013698,2]
[353549397,1739909432424,-352.28159962,0.00013698,2]
[353549398,1739909432434,-500.0,0.00013698,2]
[353549399,1739909432443,-500.0,0.00013698,2]
[353549400,1739909432452,-462.66210424,0.00013698,2]
[353549401,1739909432462,-500.0,0.00013698,2]
[353549402,1739909432472,-500.0,0.00013698,2]
[353549403,1739909432481,-500.0,0.00013698,2]
[353549404,1739909432491,-500.0,0.00013698,2]
[353549405,1739909432501,-500.0,0.00013698,2]
[353549406,1739909432511,-500.0,0.00013698,2]
[353549407,1739909432520,-500.0,0.00013698,2]
[353549408,1739909432530,-500.0,0.00013698,2]
[353549409,1739909432541,-500.0,0.00013698,2]
[353549410,1739909432551,-500.0,0.00013698,2]
[353549411,1739909432560,-500.0,0.00013698,2]
[353549412,1739909432570,-500.0,0.00013698,2]
[353549413,1739909432581,-500.0,0.00013698,2]
[353549414,1739909432591,-500.0,0.00013698,2]
[353549415,1739909432600,-500.0,0.00013698,2]
[353549416,1739909432610,-501.04257956,0.00013698,2]
[353549417,1739909432619,-500.0,0.00013698,2]
[353549418,1739909432629,-500.0,0.00013698,2]
[353549419,1739909432639,-500.0,0.00013698,2]
[353549420,1739909432648,-505.43735776,0.00013698,2]
[353549421,1739909432658,-500.0,0.00013698,2]
[353549422,1739909432667,-500.0,0.00013698,2]
[353549423,1739909432676,-500.0,0.00013698,2]
[353549424,1739909432686,-500.0,0.00013698,2]
[353549425,1739909432695,-500.0,0.00013698,2]
[353549426,1739909432704,-500.0,0.00013698,2]
[353549427,1739909432714,-500.0,0.00013698,2]
[353549428,1739909432723,-500.0,0.00013698,2]
[353549429,1739909432732,-500.0,0.00013698,2]
[353549430,1739909432741,-500.0,0.00013698,2]
[353549431,1739909432751,-500.28032455,0.00013698,2]
[353549432,1739909432760,-501.92799783,0.00013698,2]
[353549433,1739909432769,-313.97481182,0.00013698,2]
[353549434,1739909432779,-501.3842155,0.00013698,2]
[353549435,1739909432789,-501.51034524,0.00013698,2]
[353549436,1739909432799,-620.92,0.00013698,2]
[353549437,1739909432809,-500.0,0.00013698,2]
[353549438,1739909432818,-500.0,0.00013698,2]
[353549439,1739909432829,-500.0,0.00013698,2]
[353549440,1739909432839,-500.0,0.00013698,2]
[353549441,1739909432849,-500.0,0.00013698,2]
[353549442,1739909432859,-500.0,0.00013698,2]
[353549443,1739909432868,-500.0,0.00013698,2]
[353549444,1739909432878,-500.0,0.00013698,2]
[353549445,1739909432887,-500.0,0.00013698,2]
[353549446,1739909432897,-500.0,0.00013698,2]
[353549447,1739909432906,-307.93491791,0.00013698,2]
[353549448,1739909432916,-500.0,0.00013698,2]
[353549449,1739909432926,-500.0,0.00013698,2]